fUST/lending_fUST_20240227
["ID","MTS","AMOUNT","RATE_DAILY","PERIOD"]
[315417659,1709021449131,-500.0,0.00020573,2]
[315417661,1709021449141,-500.0,0.00020573,2]
[315417663,1709021449151,-5000.0,0.00020574,5]
[315417665,1709021449160,-50000.0,0.00020574,5]
[315417667,1709021449170,-50000.0,0.00020574,5]
[315417669,1709021449179,-215.24606415,0.00020574,5]
[315417686,1709021449330,-153.0,0.00020466,2]
[315417688,1709021449340,-49784.75393585,0.00020574,5]
[315417690,1709021449349,-27215.14102882,0.00020574,5]
[315417692,1709021449361,-1000.215828,0.00020574,5]
[315417694,1709021449373,-555.55,0.00020574,5]
[315417696,1709021449385,-587.835,0.00020574,5]
[315417699,1709021449396,-607.3122902,0.00020574,5]
[315417701,1709021449408,-300.1689575,0.00020574,5]
[315417703,1709021449419,-361.142272,0.00020574,5]
[315417705,1709021449433,-301.804,0.00020574,5]
[315417707,1709021449444,-309.0,0.00020574,5]
[315417709,1709021449455,-332.34021618,0.00020574,5]
[315417820,1709021450557,-335.10525087,0.0001999,3]
[315417823,1709021450570,-10342.62474913,0.0001999,3]
[315417825,1709021450579,-155.18156243,0.00020373,2]
[315417827,1709021450588,-283.15405781,0.00020373,2]
[315417829,1709021450597,-18429.4904073,0.00020574,5]
[315417830,1709021450607,-50000.0,0.00020574,5]
[315417832,1709021450616,-96417.70466465,0.00020574,5]
[315417834,1709021450625,-180.911797,0.00020574,2]
[315417836,1709021450634,-180.911797,0.00020574,2]
[315417838,1709021450643,-180.911797,0.00020574,2]
[315417840,1709021450655,-180.911797,0.00020574,2]
[315417842,1709021450664,-1443.405726,0.00020574,2]
[315417844,1709021450674,-1443.405726,0.00020574,2]
[315417845,1709021450682,-1443.405726,0.00020574,2]
[315417846,1709021450691,-1443.405726,0.00020574,2]
[315417847,1709021450700,-378.226304,0.00020574,2]
[315417848,1709021450708,-378.226304,0.00020574,2]
[315417849,1709021450717,-378.226304,0.00020574,2]
[315417850,1709021450726,-378.226304,0.00020574,2]
[315417851,1709021450735,-151.0,0.00020574,2]
[315417852,1709021450744,-151.0,0.00020574,2]
[315417853,1709021450753,-151.0,0.00020574,2]
[315417855,1709021450763,-151.0,0.00020574,2]
[315417857,1709021450772,-151.0,0.00020574,2]
[315417859,1709021450781,-1443.405726,0.00020578,2]
[315417861,1709021450791,-1443.405726,0.00020578,2]
[315417863,1709021450801,-378.226304,0.00020578,2]
[315417865,1709021450810,-378.226304,0.00020578,2]
[315417867,1709021450819,-151.0,0.00020578,2]
[315417869,1709021450828,-5000.0,0.00020582,5]
[315417871,1709021450838,-5000.0,0.00020583,5]
[315417873,1709021450847,-18405.99078958,0.00020583,5]
[315417875,1709021450857,-17766.518662,0.00020584,4]
[315417877,1709021450866,-4717.79558951,0.00020587,4]
[315417879,1709021450876,-5000.0,0.00020588,5]
[315417881,1709021450885,-500.0,0.000206,2]
[315417883,1709021450894,-500.0,0.00020679,2]
[315417885,1709021450904,-1034.01920466,0.00020681,2]
[315417887,1709021450913,-155.18466976,0.00020681,2]
[315417889,1709021450923,-202.08543006,0.00020682,2]
[315417891,1709021450932,-239.83549538,0.00020682,2]
[315417893,1709021450941,-1000.0,0.00020682,5]
[315417895,1709021450950,-1000.0,0.00020682,5]
[315417897,1709021450960,-1197.68683239,0.00020682,2]
[315417899,1709021450969,-1000.0,0.00020682,5]
[315417901,1709021450978,-180.911797,0.00020682,2]
[315417903,1709021450987,-180.911797,0.00020682,2]
[315417914,1709021451083,-1000.0,0.00020683,5]
[315417916,1709021451092,-1000.0,0.00020683,5]
[315417918,1709021451103,-1000.0,0.00020683,5]
[315417920,1709021451112,-1000.0,0.00020683,5]
[315417922,1709021451121,-11527.99127415,0.00020683,2]
[315417924,1709021451131,-1000.0,0.00020683,5]
[315417926,1709021451140,-2766.22131357,0.00020684,2]
[315417928,1709021451150,-1000.0,0.00020684,5]
[315417931,1709021451165,-1593.76157348,0.00020684,2]
[315417932,1709021451175,-1000.0,0.00020684,5]
[315417934,1709021451184,-243.82431637,0.00020684,2]
[315417937,1709021451194,-2592.04161304,0.00020684,2]
[315417939,1709021451203,-1000.0,0.00020684,5]
[315417940,1709021451213,-1000.0,0.00020684,5]
[315417942,1709021451223,-1000.0,0.00020684,5]
[315417945,1709021451232,-1000.0,0.00020684,5]
[315417947,1709021451242,-1000.0,0.00020684,5]
[315417949,1709021451251,-1000.0,0.00020684,5]
[315417951,1709021451261,-1000.0,0.00020684,5]
[315417952,1709021451270,-5127.22208156,0.00020684,2]
[315417955,1709021451280,-1000.0,0.00020684,5]
[315417956,1709021451290,-1000.0,0.00020684,5]
[315417959,1709021451300,-2722.52771517,0.00020684,2]
[315417961,1709021451309,-1000.0,0.00020685,5]
[315417963,1709021451318,-1000.0,0.00020685,5]
[315417964,1709021451327,-1416.48262535,0.00020685,2]
[315417967,1709021451336,-1000.0,0.00020685,5]
[315417968,1709021451345,-962.33153178,0.00020685,2]
[315417970,1709021451354,-1000.0,0.00020685,5]
[315417973,1709021451363,-1000.0,0.00020693,2]
[315417974,1709021451373,-1000.0,0.00020697,2]
[315417976,1709021451382,-1000.0,0.00020698,2]
[315417978,1709021451392,-1000.0,0.00020704,2]
[315417980,1709021451402,-1000.0,0.00020708,2]
[315417983,1709021451412,-1000.0,0.00020724,2]
[315417984,1709021451424,-1789.42914096,0.00020728,2]
[315417986,1709021451434,-1000.0,0.00020735,2]
[315417989,1709021451443,-1000.0,0.00020754,2]
[315417991,1709021451453,-1000.0,0.00020755,2]
[315417992,1709021451464,-1000.0,0.00020776,2]
[315417994,1709021451473,-1000.0,0.00020795,2]
[315417996,1709021451482,-1000.0,0.00020796,2]
[315417998,1709021451491,-2957.61415974,0.000208,3]
[315418000,1709021451502,-580.0,0.000208,2]
[315418002,1709021451511,-500.0,0.00020801,2]
[315418004,1709021451521,-1000.0,0.00020806,2]
[315418006,1709021451529,-1000.0,0.00020808,2]
[315418008,1709021451539,-500.0,0.00020821,2]
[315418010,1709021451549,-733.11,0.00020821,2]
[315418012,1709021451558,-500.0,0.00020821,2]
[315418014,1709021451567,-500.0,0.00020821,2]
[315418016,1709021451576,-1333.94,0.00020821,2]
[315418018,1709021451586,-500.0,0.00020821,2]
[315418020,1709021451595,-500.0,0.00020821,2]
[315418022,1709021451605,-741.17,0.00020821,2]
[315418024,1709021451614,-1512.61,0.00020821,2]
[315418026,1709021451623,-541.32,0.00020821,2]
[315418028,1709021451632,-824.75,0.00020821,2]
[315418030,1709021451642,-180.911797,0.00020821,2]
[315418032,1709021451651,-3542.19,0.00020821,2]
[315418034,1709021451660,-180.911797,0.00020821,2]
[315418036,1709021451669,-500.0,0.00020821,2]
[315418038,1709021451678,-1510.02,0.00020821,2]
[315418040,1709021451688,-2530.06,0.00020821,2]
[315418042,1709021451698,-586.59,0.00020821,2]
[315418044,1709021451707,-500.0,0.00020821,2]
[315418046,1709021451716,-660.54,0.00020821,2]
[315418048,1709021451725,-614.93,0.00020821,2]
[315418050,1709021451734,-1504.02,0.00020821,2]
[315418052,1709021451743,-500.0,0.00020821,2]
[315418054,1709021451753,-500.0,0.00020821,2]
[315418056,1709021451762,-1443.405726,0.00020821,2]
[315418058,1709021451772,-1443.405726,0.00020821,2]
[315418060,1709021451781,-1709.67,0.00020821,2]
[315418062,1709021451791,-524.16,0.00020821,2]
[315418064,1709021451801,-1626.61,0.00020821,2]
[315418066,1709021451810,-848.22,0.00020821,2]
[315418068,1709021451819,-500.0,0.00020821,2]
[315418070,1709021451829,-378.226304,0.00020821,2]
[315418072,1709021451838,-1376.52,0.00020821,2]
[315418074,1709021451847,-378.226304,0.00020821,2]
[315418076,1709021451856,-199.18234607,0.00020821,2]
[315418078,1709021451865,-18293.64,0.00020821,2]
[315418080,1709021451873,-968.79,0.00020821,2]
[315418082,1709021451882,-500.0,0.00020821,2]
[315418084,1709021451891,-961.57,0.00020821,2]
[315418086,1709021451900,-694.35,0.00020821,2]
[315418088,1709021451909,-500.0,0.00020821,2]
[315418090,1709021451918,-500.0,0.00020821,2]
[315418092,1709021451927,-728.43,0.00020821,2]
[315418094,1709021451936,-9364.32,0.00020821,2]
[315418096,1709021451946,-500.0,0.00020821,2]
[315418098,1709021451955,-1356.05,0.00020821,2]
[315418100,1709021451964,-1053.2,0.00020821,2]
[315418102,1709021451973,-3787.63,0.00020821,2]
[315418104,1709021451982,-151.0,0.00020821,2]
[315418106,1709021451991,-18667.35,0.00020821,2]
[315418108,1709021451999,-6979.36,0.00020821,2]
[315418110,1709021452009,-762.61,0.00020821,2]
[315418112,1709021452018,-2431.52,0.00020821,2]
[315418114,1709021452027,-1390.41,0.00020821,2]
[315418116,1709021452039,-500.0,0.00020821,2]
[315418118,1709021452048,-2382.51,0.00020821,2]
[315418120,1709021452057,-1795.12,0.00020821,2]
[315418122,1709021452066,-508.39792088,0.00020821,2]
[315418124,1709021452075,-500.0,0.00020821,2]
[315418126,1709021452083,-3077.62,0.00020821,2]
[315418128,1709021452092,-3562.24,0.00020821,2]
[315418130,1709021452101,-644.23,0.00020821,2]
[315418132,1709021452110,-1853.52,0.00020821,2]
[315418134,1709021452118,-1921.56,0.00020821,2]
[315418136,1709021452127,-500.0,0.00020821,2]
[315418138,1709021452136,-651.04,0.00020821,2]
[315418140,1709021452145,-500.0,0.00020821,2]
[315418142,1709021452154,-1690.76,0.00020821,2]
[315418144,1709021452163,-1869.88,0.00020821,2]
[315418146,1709021452172,-1000.0,0.00020831,2]
[315418148,1709021452181,-1000.0,0.00020832,2]
[315418150,1709021452190,-1000.0,0.00020832,2]
[315418152,1709021452199,-1000.0,0.00020839,2]
[315418154,1709021452208,-1000.0,0.00020848,2]
[315418156,1709021452217,-1000.0,0.00020852,2]
[315418158,1709021452226,-1000.0,0.00020856,2]
[315418160,1709021452235,-1000.0,0.00020861,2]
[315418162,1709021452244,-328.4538939,0.00020876,2]
[315418164,1709021452253,-1000.0,0.00020883,2]
[315418166,1709021452262,-1000.0,0.00020892,2]
[315418168,1709021452271,-1789.42914096,0.000209,2]
[315418170,1709021452280,-1000.0,0.00020918,2]
[315418172,1709021452289,-500.0,0.00020924,2]
[315418174,1709021452299,-2442.04042397,0.0002094,2]
[315418176,1709021452308,-200.6117409,0.00020945,2]
[315418178,1709021452317,-2442.04042397,0.00020954,2]
[315418180,1709021452326,-24845.76673284,0.00020958,2]
[315418182,1709021452335,-2442.04042397,0.00020963,2]
[315418184,1709021452344,-620.0021356,0.00020965,2]
[315418186,1709021452353,-24845.76673284,0.00020967,2]
[315418188,1709021452362,-195404.75657566,0.0002097,2]
[315418190,1709021452371,-166.666666,0.00020973,2]
[315418192,1709021452380,-24845.76673284,0.00020977,2]
[315418194,1709021452389,-378.226304,0.00020977,2]
[315418196,1709021452398,-378.226304,0.00020977,2]
[315418198,1709021452407,-205.421068,0.00020977,2]
[315418200,1709021452417,-214.04629134,0.00020998,2]
[315418202,1709021452426,-298236.74136705,0.00021,2]
[315418205,1709021452442,-4024.710697,0.00021,2]
[315418918,1709021579298,2067.10488,1e-05,5]
[315418981,1709022632727,-1364.59163074,0.00017056,2]
[315418983,1709022632737,-534.32649267,0.00017057,2]
[315418985,1709022632749,-830.26513807,0.00017057,2]
[315418987,1709022632758,-1168.4058474,0.00017136,2]
[315418988,1709022632768,-6921.77269846,0.0001723,2]
[315418989,1709022632785,-5629.89775979,0.0001723,2]
[315418991,1709022632797,-12348.32954175,0.0001723,2]
[315418992,1709022632806,-239.540183,0.00017393,2]
[315418995,1709022632816,-719.6852547,0.00017702,2]
[315418997,1709022632826,-230.5517118,0.00017709,2]
[315418999,1709022632836,-1781.00658163,0.000189,2]
[315419000,1709022632844,-336.81668335,0.00019,2]
[315419003,1709022632856,-11264.84907261,0.00019,2]
[315419287,1709022638667,-183.00739847,0.00017293,2]
[315419289,1709022638677,-55255.33424404,0.00019,2]
[315419291,1709022638686,-1167.39863428,0.00019078,2]
[315419293,1709022638695,-153.0,0.00019096,2]
[315419295,1709022638705,-153.0,0.00019096,2]
[315419297,1709022638714,-153.0,0.00019096,2]
[315419299,1709022638724,-234.0976926,0.00019096,2]
[315419301,1709022638732,-568.39,0.00019167,3]
[315419303,1709022638741,-568.35,0.00019168,3]
[315419305,1709022638751,-260.43337929,0.00019176,2]
[315419307,1709022638760,-159.81789242,0.00019177,2]
[315419309,1709022638769,-500.0,0.00019177,2]
[315419311,1709022638779,-1213.45601374,0.00019177,2]
[315419313,1709022638789,-500.0,0.00019178,2]
[315419315,1709022638799,-500.0,0.00019178,2]
[315419317,1709022638808,-500.0,0.00019178,2]
[315419319,1709022638818,-513.26,0.00019178,2]
[315419321,1709022638827,-500.0,0.00019178,2]
[315419323,1709022638837,-476.05935812,0.00019178,2]
[315419326,1709022638846,-500.0,0.00019178,2]
[315419328,1709022638856,-500.0,0.00019178,2]
[315419329,1709022638867,-500.0,0.00019178,2]
[315419331,1709022638877,-577.97,0.00019178,2]
[315419333,1709022638886,-500.0,0.00019178,2]
[315419335,1709022638896,-500.0,0.00019178,2]
[315419337,1709022638905,-255.55957885,0.00019178,2]
[315419339,1709022638915,-500.0,0.00019178,2]
[315419342,1709022638924,-563.69,0.00019178,2]
[315419344,1709022638934,-500.0,0.00019178,2]
[315419346,1709022638943,-500.0,0.00019178,2]
[315419348,1709022638952,-500.0,0.00019178,2]
[315419350,1709022638962,-504.14013285,0.00019178,2]
[315419352,1709022638971,-500.0,0.00019178,2]
[315419354,1709022638980,-282.6196593,0.00019178,2]
[315419356,1709022638990,-501.34358401,0.00019178,2]
[315419358,1709022638999,-500.0,0.00019178,2]
[315419360,1709022639009,-410.10016763,0.00019178,2]
[315419362,1709022639020,-3247.0,0.00019178,2]
[315419364,1709022639029,-1384.19,0.00019178,2]
[315419366,1709022639038,-500.0,0.00019178,2]
[315419368,1709022639047,-2319.22,0.00019178,2]
[315419370,1709022639057,-500.0,0.00019178,2]
[315419372,1709022639067,-1261.81,0.00019178,2]
[315419374,1709022639076,-500.0,0.00019178,2]
[315419376,1709022639084,-777.54,0.00019178,2]
[315419378,1709022639093,-500.0,0.00019178,2]
[315419380,1709022639102,-756.02,0.00019178,2]
[315419382,1709022639112,-500.0,0.00019178,2]
[315419384,1709022639123,-500.0,0.00019178,2]
[315419386,1709022639132,-294.53909541,0.00019178,2]
[315419388,1709022639140,-501.00933044,0.00019178,2]
[315419390,1709022639149,-500.0,0.00019178,2]
[315419392,1709022639161,-500.0,0.00019178,2]
[315419394,1709022639172,-500.0,0.00019178,2]
[315419396,1709022639181,-500.0,0.00019178,2]
[315419398,1709022639190,-500.0,0.00019178,2]
[315419400,1709022639199,-500.0,0.00019178,2]
[315419402,1709022639208,-500.0,0.00019178,2]
[315419404,1709022639218,-500.0,0.00019178,2]
[315419406,1709022639227,-500.0,0.00019178,2]
[315419408,1709022639236,-500.0,0.00019178,2]
[315419409,1709022639246,-1378.68,0.00019178,2]
[315419411,1709022639255,-1638.43,0.00019178,2]
[315419413,1709022639264,-500.0,0.00019178,2]
[315419415,1709022639274,-500.0,0.00019178,2]
[315419417,1709022639283,-500.0,0.00019178,2]
[315419419,1709022639292,-500.0,0.00019178,2]
[315419421,1709022639301,-500.0,0.00019178,2]
[315419423,1709022639311,-1491.06,0.00019178,2]
[315419425,1709022639320,-551.18,0.00019178,2]
[315419427,1709022639330,-500.0,0.00019178,2]
[315419429,1709022639339,-500.86552404,0.00019178,2]
[315419431,1709022639348,-500.0,0.00019178,2]
[315419433,1709022639358,-500.0,0.00019178,2]
[315419435,1709022639368,-376.53396052,0.00019178,2]
[315419436,1709022639377,-501.19562815,0.00019178,2]
[315419438,1709022639386,-573.44249112,0.00019178,2]
[315419440,1709022639395,-500.0,0.00019178,2]
[315419442,1709022639405,-500.0,0.00019178,2]
[315419444,1709022639414,-500.0,0.00019178,2]
[315419446,1709022639425,-881.44,0.00019178,2]
[315419448,1709022639434,-500.0,0.00019178,2]
[315419450,1709022639443,-500.0,0.00019178,2]
[315419451,1709022639452,-500.0,0.00019178,2]
[315419452,1709022639461,-500.0,0.00019178,2]
[315419453,1709022639471,-500.0,0.00019178,2]
[315419454,1709022639480,-500.0,0.00019178,2]
[315419456,1709022639490,-500.0,0.00019178,2]
[315419458,1709022639499,-500.0,0.00019178,2]
[315419460,1709022639508,-500.0,0.00019178,2]
[315419462,1709022639517,-500.0,0.00019178,2]
[315419464,1709022639527,-500.0,0.00019178,2]
[315419466,1709022639536,-500.0,0.00019178,2]
[315419468,1709022639545,-500.0,0.00019178,2]
[315419470,1709022639555,-500.0,0.00019178,2]
[315419472,1709022639565,-500.0,0.00019178,2]
[315419484,1709022639574,-888.06,0.00019178,2]
[315419487,1709022639706,-500.0,0.00019178,2]
[315419489,1709022639715,-8583.96,0.00019178,2]
[315419491,1709022639724,-500.18571217,0.00019178,2]
[315419492,1709022639733,-171.31810075,0.00019178,2]
[315419495,1709022639743,-698.08,0.00019178,2]
[315419497,1709022639752,-500.20544472,0.00019178,2]
[315419498,1709022639761,-500.0,0.00019178,2]
[315419500,1709022639771,-500.0,0.00019178,2]
[315419501,1709022639781,-1009.32,0.00019178,2]
[315419502,1709022639793,-3472.0,0.00019178,2]
[315419503,1709022639802,-500.0,0.00019178,2]
[315419504,1709022639811,-500.0,0.00019178,2]
[315419505,1709022639822,-500.0,0.00019178,2]
[315419506,1709022639831,-500.91730771,0.00019178,2]
[315419507,1709022639840,-500.0,0.00019178,2]
[315419508,1709022639850,-554.18861888,0.00019178,2]
[315419509,1709022639859,-500.0,0.00019178,2]
[315419510,1709022639872,-502.85792086,0.00019178,2]
[315419511,1709022639882,-699.06,0.00019178,2]
[315419512,1709022639891,-501.29042956,0.00019178,2]
[315419513,1709022639900,-500.67580525,0.00019178,2]
[315419514,1709022639910,-500.0,0.00019178,2]
[315419515,1709022639919,-500.0,0.00019178,2]
[315419516,1709022639928,-500.0,0.00019178,2]
[315419517,1709022639937,-583.2051723,0.00019178,2]
[315419518,1709022639946,-500.0,0.00019178,2]
[315419519,1709022639956,-1243.04,0.00019178,2]
[315419520,1709022639965,-1332.48,0.00019178,2]
[315419521,1709022639974,-500.0,0.00019178,2]
[315419522,1709022639984,-500.0,0.00019178,2]
[315419523,1709022639993,-503.20835864,0.00019178,2]
[315419524,1709022640002,-2283.23,0.00019178,2]
[315419525,1709022640012,-500.0,0.00019178,2]
[315419526,1709022640021,-500.0,0.00019178,2]
[315419527,1709022640030,-6397.75,0.00019178,2]
[315419528,1709022640039,-500.96626582,0.00019178,2]
[315419529,1709022640049,-500.0,0.00019178,2]
[315419530,1709022640058,-524.3336593,0.00019178,2]
[315419531,1709022640068,-2330.2,0.00019178,2]
[315419532,1709022640077,-500.0,0.00019178,2]
[315419533,1709022640087,-4470.27,0.00019178,2]
[315419534,1709022640096,-500.0,0.00019178,2]
[315419535,1709022640105,-617.39,0.00019178,2]
[315419536,1709022640115,-500.0,0.00019178,2]
[315419537,1709022640125,-500.0,0.00019178,2]
[315419538,1709022640135,-17889.54,0.00019178,2]
[315419539,1709022640144,-1278.36,0.00019178,2]
[315419540,1709022640154,-500.0,0.00019178,2]
[315419541,1709022640162,-500.0,0.00019178,2]
[315419542,1709022640172,-501.95643743,0.00019178,2]
[315419543,1709022640181,-1841.49,0.00019178,2]
[315419544,1709022640190,-500.0,0.00019178,2]
[315419545,1709022640200,-1000.0,0.00019178,2]
[315419546,1709022640209,-3413.81,0.00019178,2]
[315419547,1709022640219,-500.0,0.00019178,2]
[315419548,1709022640229,-1776.29,0.00019178,2]
[315419549,1709022640240,-500.0,0.00019178,2]
[315419550,1709022640249,-500.0,0.00019178,2]
[315419551,1709022640259,-1720.32,0.00019178,2]
[315419552,1709022640269,-2949.39,0.00019178,2]
[315419553,1709022640279,-544.99348939,0.00019178,2]
[315419554,1709022640290,-501.378692,0.00019178,2]
[315419555,1709022640301,-500.0,0.00019178,2]
[315419556,1709022640310,-443.10422866,0.00019178,2]
[315419557,1709022640319,-500.0,0.00019178,2]
[315419558,1709022640329,-500.0,0.00019178,2]
[315419559,1709022640338,-500.0,0.00019178,2]
[315419560,1709022640347,-500.0,0.00019178,2]
[315419561,1709022640357,-518.76,0.00019178,2]
[315419562,1709022640368,-500.0,0.00019178,2]
[315419563,1709022640377,-500.0,0.00019178,2]
[315419564,1709022640386,-500.0,0.00019178,2]
[315419565,1709022640395,-500.0,0.00019178,2]
[315419566,1709022640405,-549.59387891,0.00019178,2]
[315419567,1709022640414,-504.40324197,0.00019178,2]
[315419568,1709022640423,-336.01860419,0.00019178,2]
[315419569,1709022640432,-500.0,0.00019178,2]
[315419570,1709022640441,-500.0,0.00019178,2]
[315419571,1709022640451,-500.0,0.00019178,2]
[315419572,1709022640460,-500.0,0.00019178,2]
[315419573,1709022640469,-500.0,0.00019178,2]
[315419574,1709022640479,-500.0,0.00019178,2]
[315419575,1709022640488,-623.92,0.00019178,2]
[315419576,1709022640497,-500.0,0.00019178,2]
[315419577,1709022640506,-1449.59,0.00019178,2]
[315419578,1709022640515,-500.0,0.00019178,2]
[315419579,1709022640525,-500.0,0.00019178,2]
[315419580,1709022640534,-1620.31,0.00019178,2]
[315419581,1709022640543,-501.83788764,0.00019178,2]
[315419582,1709022640552,-1791.97,0.00019178,2]
[315419583,1709022640562,-500.0,0.00019178,2]
[315419584,1709022640571,-500.0,0.00019178,2]
[315419585,1709022640580,-710.28,0.00019178,2]
[315419586,1709022640590,-500.0,0.00019178,2]
[315419587,1709022640598,-502.10295356,0.00019178,2]
[315419588,1709022640607,-500.0,0.00019178,2]
[315419589,1709022640618,-500.0,0.00019178,2]
[315419590,1709022640627,-500.0,0.00019178,2]
[315419591,1709022640636,-17531.41,0.00019178,2]
[315419592,1709022640646,-1423.14,0.00019178,2]
[315419593,1709022640654,-1423.14,0.00019178,2]
[315419594,1709022640663,-1423.14,0.00019178,2]
[315419595,1709022640672,-694.82180753,0.00019178,2]
[315419596,1709022640682,-166.560288,0.00019178,2]
[315419597,1709022640692,-166.905245,0.00019178,2]
[315419598,1709022640701,-166.666666,0.00019178,2]
[315419599,1709022640710,-164.1998302,0.00019178,2]
[315419600,1709022640719,-430.973088,0.00019178,4]
[315419601,1709022640728,-500.0,0.00019232,2]
[315419602,1709022640737,-1167.39863426,0.00019284,2]
[315419603,1709022640747,-500.0,0.00019287,2]
[315419604,1709022640756,-500.0,0.00019342,2]
[315419606,1709022640765,-500.0,0.00019396,2]
[315419609,1709022640774,-500.0,0.00019451,2]
[315419611,1709022640789,-500.0,0.00019451,2]
[315419613,1709022640798,-500.0,0.00019451,2]
[315419615,1709022640807,-500.0,0.00019451,2]
[315419616,1709022640819,-186.79569354,0.00019451,2]
[315419617,1709022640829,-500.0,0.00019452,2]
[315419618,1709022640841,-500.0,0.00019452,2]
[315419619,1709022640850,-500.0,0.00019452,2]
[315419620,1709022640859,-513.26,0.00019452,2]
[315419621,1709022640870,-500.0,0.00019452,2]
[315419622,1709022640880,-500.0,0.00019452,2]
[315419623,1709022640889,-500.0,0.00019452,2]
[315419624,1709022640899,-577.97,0.00019452,2]
[315419625,1709022640908,-500.0,0.00019452,2]
[315419626,1709022640917,-500.0,0.00019452,2]
[315419627,1709022640926,-563.69,0.00019452,2]
[315419628,1709022640936,-500.0,0.00019452,2]
[315419629,1709022640945,-500.0,0.00019452,2]
[315419630,1709022640954,-500.0,0.00019452,2]
[315419632,1709022640963,-500.0,0.00019452,2]
[315419634,1709022640972,-3247.0,0.00019452,2]
[315419635,1709022640982,-1384.19,0.00019452,2]
[315419637,1709022640992,-500.0,0.00019452,2]
[315419639,1709022641001,-2319.22,0.00019452,2]
[315419641,1709022641010,-1261.81,0.00019452,2]
[315419643,1709022641020,-500.0,0.00019452,2]
[315419645,1709022641029,-777.54,0.00019452,2]
[315419647,1709022641038,-500.0,0.00019452,2]
[315419649,1709022641047,-756.02,0.00019452,2]
[315419651,1709022641056,-500.0,0.00019452,2]
[315419652,1709022641066,-299.44952129,0.00019452,2]
[315419654,1709022641075,-500.0,0.00019452,2]
[315419656,1709022641084,-500.0,0.00019452,2]
[315419658,1709022641093,-500.0,0.00019452,2]
[315419659,1709022641103,-500.0,0.00019452,2]
[315419661,1709022641112,-401.01611644,0.00019452,2]
[315419663,1709022641122,-500.0,0.00019452,2]
[315419665,1709022641132,-500.0,0.00019452,2]
[315419667,1709022641140,-500.0,0.00019452,2]
[315419668,1709022641150,-212.44196053,0.00019452,2]
[315419669,1709022641160,-1378.68,0.00019452,2]
[315419670,1709022641169,-500.0,0.00019452,2]
[315419671,1709022641178,-1638.43,0.00019452,2]
[315419672,1709022641187,-466.40052004,0.00019452,2]
[315419673,1709022641196,-500.0,0.00019452,2]
[315419674,1709022641206,-500.0,0.00019452,2]
[315419675,1709022641216,-500.0,0.00019452,2]
[315419676,1709022641226,-1491.06,0.00019452,2]
[315419677,1709022641235,-551.18,0.00019452,2]
[315419678,1709022641245,-500.0,0.00019452,2]
[315419679,1709022641254,-500.0,0.00019452,2]
[315419680,1709022641263,-500.0,0.00019452,2]
[315419681,1709022641273,-500.0,0.00019452,2]
[315419682,1709022641283,-500.0,0.00019452,2]
[315419683,1709022641293,-315.7665185,0.00019452,2]
[315419684,1709022641303,-881.44,0.00019452,2]
[315419685,1709022641312,-395.16181797,0.00019452,2]
[315419686,1709022641321,-500.0,0.00019452,2]
[315419687,1709022641331,-500.0,0.00019452,2]
[315419688,1709022641340,-500.0,0.00019452,2]
[315419689,1709022641349,-500.0,0.00019452,2]
[315419690,1709022641359,-500.0,0.00019452,2]
[315419691,1709022641369,-500.0,0.00019452,2]
[315419692,1709022641378,-500.0,0.00019452,2]
[315419693,1709022641388,-500.0,0.00019452,2]